bitfinex/quotes_ETHUSD_20211001
["timestamp","ask_amount","ask_price","bid_price","bid_amount"]
[1633076208699,0.006,3105.8,3105.6,1.0]
[1633076208902,0.006,3105.8,3105.6,0.44954854]
[1633076209297,0.29897245,3105.7,3105.5,5.41054212]
[1633076209498,1.29668583,3105.7,3105.5,5.41054212]
[1633076210702,1.29668583,3105.7,3105.4,1.72655263]
[1633076210703,9.06054212,3105.5,3105.4,1.72655263]
[1633076210900,5.41054212,3105.5,3105.4,1.72655263]
[1633076211301,4.4,3105.4,3104.9,0.003]
[1633076211601,5.41054212,3105.5,3104.9,0.003]
[1633076212200,1.294,3105.2,3104.9,0.003]
[1633076212402,0.7413757,3105.4,3105.0,0.06585544]
[1633076212602,0.7413757,3105.4,3104.0,0.003]
[1633076212603,2.23905408,3104.3,3104.0,0.003]
[1633076213000,2.23905408,3104.3,3103.7,0.003]
[1633076213203,1.294,3104.0,3103.7,0.003]
[1633076213400,0.74012874,3104.0,3103.7,0.003]
[1633076213801,3.74773056,3103.6,3103.2,0.003]
[1633076214200,3.74773056,3103.6,3102.7,0.006]
[1633076214401,1.12698188,3103.1,3102.7,0.006]
[1633076214601,1.12698188,3103.1,3102.7,0.75509525]
[1633076214802,1.12698188,3103.1,3102.5,0.00470319]
[1633076215004,3.19138724,3103.0,3102.8,0.00170319]
[1633076215201,1.294,3102.9,3102.8,0.00170319]
[1633076215400,1.294,3102.9,3102.5,0.00470319]
[1633076215603,4.83749,3102.8,3102.4,0.00470319]
[1633076215802,0.90413511,3102.6,3102.4,0.00470319]
[1633076216001,3.12156023,3103.2,3102.4,0.00470319]
[1633076216002,0.155,3103.8,3102.4,0.00470319]
[1633076216200,1.294,3102.9,3102.4,0.00470319]
[1633076216400,15.0,3104.1,3102.4,0.00470319]
[1633076216401,8.0,3104.6,3103.4,8.75]
[1633076216604,0.003,3105.0,3104.5,0.02527844]
[1633076216605,0.17091413,3105.0,3104.5,0.02527844]
[1633076216803,0.003,3105.0,3104.5,0.02527844]
[1633076217001,0.003,3105.0,3104.0,0.003]
[1633076217002,1.93963829,3104.7,3104.0,0.003]
[1633076217202,0.90764877,3104.7,3104.0,0.003]
[1633076217402,0.90764877,3104.7,3103.6,0.003]
[1633076218001,0.94301204,3103.8,3103.7,0.19609498]
[1633076218203,1.79557479,3103.8,3103.7,0.19609498]
[1633076218401,1.79557479,3103.8,3103.7,0.19909498]
[1633076218402,0.85256275,3103.8,3103.7,0.19909498]
[1633076218602,2.14656275,3103.8,3103.7,0.19909498]
[1633076218803,0.85256275,3103.8,3103.7,0.19909498]
[1633076219905,1.0,3104.5,3103.7,0.19909498]
[1633076220108,1.13864586,3104.8,3103.8,3.22266]
[1633076220305,1.13864586,3104.8,3103.9,2.91848732]
[1633076220507,1.13864586,3104.8,3103.9,0.003]
[1633076220705,2.03968761,3104.8,3104.2,0.84496542]
[1633076220907,1.294,3104.5,3104.2,0.84496542]
[1633076221105,1.00081614,3104.7,3104.2,0.84496542]
[1633076221906,1.00081614,3104.7,3104.0,3.2256782]
[1633076222505,1.00161659,3104.7,3104.0,3.2256782]
[1633076222715,1.294,3104.4,3104.0,3.2256782]
[1633076222906,1.00161659,3104.7,3103.6,0.98949714]
[1633076222907,1.18349857,3104.1,3103.6,0.98949714]
[1633076224808,1.18349857,3104.1,3103.5,0.00170319]
[1633076225010,0.96711863,3103.6,3103.5,0.00170319]
[1633076225211,0.86208741,3104.3,3103.5,0.00170319]
[1633076225409,0.86208741,3104.3,3103.4,3.22006098]
[1633076225610,1.03764543,3104.3,3103.3,1.0]
[1633076225811,0.003,3104.0,3103.3,1.0]
[1633076226410,1.294,3103.7,3103.3,1.0]
[1633076226612,0.003,3104.0,3103.3,1.0]
[1633076226812,0.87955182,3103.5,3103.3,1.0]
[1633076227012,0.93834438,3103.4,3103.3,1.0]
[1633076227670,2.23234438,3103.4,3103.3,1.0]
[1633076230015,0.93834438,3103.4,3103.3,1.0]
[1633076230214,2.23234438,3103.4,3103.3,1.0]
[1633076230418,2.23234438,3103.4,3102.5,0.56577]
[1633076230419,2.588,3102.9,3102.5,0.56577]
[1633076230685,3.76433147,3102.8,3102.5,0.56577]
[1633076230815,0.98505781,3102.8,3102.5,0.56577]
[1633076231218,5.99805167,3102.8,3102.5,0.56577]
[1633076231616,5.99805167,3102.8,3102.6,0.01190624]
[1633076234419,5.82202781,3102.8,3102.6,0.19908963]
[1633076235019,0.94126192,3102.7,3102.6,0.19908963]
[1633076236684,1.11730442,3102.7,3102.6,0.00760943]
[1633076237022,1.11730442,3102.7,3102.4,0.003]
[1633076237423,0.1760425,3102.7,3102.4,0.003]
[1633076238424,0.78076456,3102.6,3102.4,0.003]
[1633076238627,5.61792456,3102.6,3102.4,0.003]
[1633076240027,5.61792456,3102.6,3102.5,0.18713237]
[1633076240428,5.61792456,3102.6,3102.5,0.19013237]
[1633076242030,5.61792456,3102.6,3102.5,0.003]
[1633076242229,5.79400434,3102.6,3102.5,0.003]
[1633076242430,5.79400434,3102.6,3102.4,0.003]
[1633076244031,5.01323978,3102.6,3102.4,0.003]
[1633076245033,0.8882582,3102.5,3102.4,0.003]
[1633076246837,0.8882582,3102.5,3102.3,2.86585165]
[1633076247434,6.44954,3102.7,3102.3,2.76585165]
[1633076247637,0.17613572,3102.4,3102.3,2.76585165]
[1633076248037,5.01353572,3102.4,3102.3,2.76585165]
[1633076249239,5.87165468,3102.4,3102.3,2.76585165]
[1633076250837,3.22499,3102.8,3102.7,1.89520645]
[1633076251039,0.003,3103.5,3103.1,11.16097455]
[1633076251241,0.003,3103.5,3103.4,0.02454984]
[1633076251937,0.003,3103.5,3103.4,5.71854984]
[1633076252136,0.003,3103.5,3103.4,0.02454984]
[1633076252538,0.003,3103.5,3103.1,11.16097455]
[1633076253138,0.17878158,3103.5,3103.3,0.77197546]
[1633076253538,0.17878158,3103.5,3103.1,11.16097455]
[1633076254739,0.17878158,3103.5,3103.3,0.84449257]
[1633076255140,0.17578158,3103.5,3103.4,1.294]
[1633076255444,8.06252,3105.6,3104.1,1.59164878]
[1633076255445,1.13864586,3104.8,3104.1,1.59164878]
[1633076255641,0.25,3104.7,3104.4,6.93704371]
[1633076255839,0.25,3104.7,3104.4,8.94204371]
[1633076256038,0.25,3104.7,3104.5,8.75]
[1633076256239,0.25,3104.7,3104.6,0.155]
[1633076256440,0.25,3104.7,3104.6,1.43768376]
[1633076257439,0.25,3104.7,3104.6,1.43338695]
[1633076257702,0.25,3104.7,3104.5,3.4969259]
[1633076258038,5.28789182,3104.6,3104.5,3.4969259]
[1633076258638,0.08742515,3104.6,3104.5,4.0941325]
[1633076258839,3.48139182,3105.4,3104.8,2.14722311]
[1633076259044,0.9434148,3106.2,3105.8,1.92370318]
[1633076259045,0.006,3105.9,3105.8,1.92370318]
[1633076259239,0.006,3105.9,3105.8,3.11289461]
[1633076259440,0.006,3105.9,3105.8,2.10289461]
[1633076260705,0.006,3105.9,3105.8,2.07870318]
[1633076260842,0.006,3105.9,3105.8,1.92370318]
[1633076260843,0.31940101,3105.9,3105.8,1.92370318]
[1633076261042,1.4387546,3105.9,3105.8,1.92370318]
[1633076261845,1.4387546,3105.9,3105.8,2.24329544]
[1633076262641,5.2887546,3105.9,3105.8,2.24329544]
[1633076263441,6.5827546,3105.9,3105.8,2.24329544]
[1633076263841,0.85234898,3105.3,3105.0,0.003]
[1633076264041,10.18241635,3105.8,3105.0,0.003]
[1633076264244,0.30094297,3105.7,3105.0,0.003]
[1633076265442,0.94550135,3105.3,3105.0,0.003]
[1633076265645,1.10176817,3105.2,3105.0,0.003]
[1633076266644,0.25,3105.5,3105.0,0.003]
[1633076267245,0.25,3105.5,3105.2,0.84181946]
[1633076267644,1.18491712,3105.4,3105.1,0.1596431]
[1633076268846,0.25,3105.5,3105.3,0.85480101]
[1633076269246,0.25,3105.5,3105.1,0.15534629]
[1633076269707,0.25,3105.5,3105.0,0.003]
[1633076269849,1.09292013,3105.1,3105.0,0.003]
[1633076270249,0.20539651,3105.4,3105.0,0.75323216]
[1633076271248,1.19356519,3105.3,3105.0,0.75323216]
[1633076271648,1.19356519,3105.3,3105.0,0.003]
[1633076272709,1.19356519,3105.3,3105.0,0.89202921]
[1633076272850,1.19356519,3105.3,3105.1,0.15748207]
[1633076273853,0.25,3105.5,3105.1,0.15748207]
[1633076274254,0.25,3105.5,3105.3,0.80920977]
[1633076274452,0.25,3105.5,3105.1,0.15748207]
[1633076275056,0.25,3105.5,3105.0,0.003]
[1633076275254,0.20539651,3105.4,3105.0,0.003]
[1633076275453,1.12163107,3105.1,3105.0,0.85690777]
[1633076275712,1.12163107,3105.1,3105.0,0.003]
[1633076276654,3.34671511,3105.1,3105.0,0.003]
[1633076277256,3.34671511,3105.1,3104.8,0.003]
[1633076277456,2.05271511,3105.1,3104.8,0.003]
[1633076277855,1.294,3105.0,3104.8,0.003]
[1633076278056,2.05271511,3105.1,3104.8,0.003]
[1633076278454,2.05271511,3105.1,3104.9,0.15743113]
[1633076278855,2.05271511,3105.1,3105.0,0.003]
[1633076279056,3.34671511,3105.1,3105.0,0.003]
[1633076279456,8.94671511,3105.1,3105.0,0.003]
[1633076279656,13.78082511,3105.1,3105.0,0.003]
[1633076279858,13.78082511,3105.1,3104.9,0.15743113]
[1633076280156,13.78082511,3105.1,3103.5,0.003]
[1633076280157,3.222,3103.8,3103.5,0.003]
[1633076280756,3.50670789,3103.8,3103.2,0.003]
[1633076280959,3.50670789,3103.8,3103.4,0.8389789]
[1633076281156,0.96744263,3103.7,3103.4,0.8389789]
[1633076281357,0.96744263,3103.7,3103.5,0.003]
[1633076281557,8.394,3103.6,3103.5,0.003]
[1633076281757,8.394,3103.6,3103.1,2.76455484]
[1633076281758,1.294,3103.6,3103.1,2.76455484]
[1633076281957,1.96744263,3103.7,3103.1,2.76455484]
[1633076282560,1.96744263,3103.7,3103.2,0.73294988]
[1633076282761,1.294,3103.5,3103.1,2.76455484]
[1633076282960,6.80365263,3103.7,3103.1,2.76455484]
[1633076283760,3.50670789,3103.8,3103.1,2.76455484]
[1633076283761,3.50670789,3103.8,3103.1,3.77305607]
[1633076284160,3.222,3103.8,3103.2,0.07830689]
[1633076285024,8.05726,3103.8,3103.2,0.07830689]
[1633076285420,2.94231852,3104.7,3104.3,6.81955074]
[1633076285621,3.19231852,3104.7,3104.4,8.94996162]
[1633076286019,3.19231852,3104.7,3104.4,15.79093162]
[1633076286221,0.29985964,3104.5,3104.4,15.79093162]
[1633076286420,0.29985964,3104.5,3104.4,18.19914413]
[1633076286618,0.29985964,3104.5,3104.4,19.49314413]
[1633076287219,3.19231852,3104.7,3104.5,8.75]
[1633076287421,0.003,3105.0,3104.5,8.75]
[1633076287422,0.003,3105.0,3104.7,1.77250225]
[1633076287621,0.003,3105.0,3104.8,1.294]
[1633076287822,0.003,3105.0,3104.7,2.93750225]
[1633076288021,0.003,3105.0,3104.8,1.0]
[1633076288423,0.003,3105.0,3104.9,8.60259949]
[1633076288822,0.003,3105.0,3104.9,10.89659949]
[1633076289624,0.003,3105.0,3104.9,3.83746153]
[1633076289826,0.003,3105.0,3104.9,3.29659949]
[1633076290025,0.003,3105.0,3104.9,3.80715982]
[1633076290425,0.003,3105.0,3104.9,9.24659949]
[1633076290630,0.003,3105.0,3104.9,3.29659949]
[1633076291628,0.15122283,3105.0,3104.9,3.29659949]
[1633076292629,0.15122283,3105.0,3104.9,2.29659949]
[1633076293226,0.15122283,3105.0,3104.9,2.29230268]
[1633076294026,0.15122283,3105.0,3104.9,2.2847694]
[1633076295227,0.003,3105.0,3104.9,6.3847694]
[1633076295430,0.003,3105.0,3104.9,2.2847694]
[1633076296228,0.003,3105.0,3104.9,7.3847694]
[1633076296828,0.003,3105.0,3104.9,2.2847694]
[1633076297231,0.15122283,3105.0,3104.9,10.7347694]
[1633076297429,0.25,3105.3,3104.9,12.64989635]
[1633076297631,0.25,3105.3,3104.9,2.90589635]
[1633076297830,0.25,3105.3,3105.1,1.294]
[1633076298032,0.25,3105.3,3105.1,0.155]
[1633076298830,0.25,3105.3,3105.2,1.294]
[1633076300028,0.917269,3105.3,3105.2,1.294]
[1633076300632,0.917269,3105.3,3105.2,1.58679556]
[1633076301236,1.7783417,3105.3,3105.2,1.58679556]
[1633076303038,1.7783417,3105.3,3105.2,0.29279556]
[1633076303241,1.7783417,3105.3,3105.2,0.28849875]
[1633076304838,1.7783417,3105.3,3105.1,0.155]
[1633076305038,1.85235906,3105.3,3105.1,0.155]
[1633076305638,0.99128636,3105.3,3105.1,0.155]
[1633076306240,0.917269,3105.3,3105.2,0.29063439]
[1633076307438,0.917269,3105.3,3105.2,0.00946539]
[1633076307641,1.98681587,3105.3,3105.2,0.00946539]
[1633076308441,0.917269,3105.3,3105.2,0.00946539]
[1633076309843,0.917269,3105.3,3105.2,0.84287584]
[1633076310441,1.13401926,3105.3,3105.2,0.83341045]
[1633076311641,0.917269,3105.3,3105.2,0.83341045]
[1633076311844,0.917269,3105.3,3105.2,0.98347338]
[1633076312245,0.917269,3105.3,3105.2,0.15006293]
[1633076312645,2.12928351,3105.3,3105.2,0.15006293]
[1633076313243,2.12928351,3105.3,3105.2,0.14576612]
[1633076313647,3.42328351,3105.3,3105.2,0.14576612]
[1633076314445,0.91821539,3105.3,3105.2,0.14576612]
[1633076315646,2.11239032,3105.3,3105.2,0.14576612]
[1633076315847,2.86510984,3105.3,3105.0,0.193]
[1633076316046,2.33128899,3105.3,3105.0,0.193]
[1633076317246,0.91821539,3105.3,3105.1,0.14788886]
[1633076318645,1.05373367,3105.2,3105.1,0.14788886]
[1633076318850,0.91821539,3105.3,3105.1,0.14788886]
[1633076319046,7.894,3105.2,3105.1,0.14788886]
[1633076319246,6.44871,3105.9,3105.1,0.14788886]
[1633076319247,0.006,3106.2,3105.6,4.01134043]
[1633076319447,5.54353697,3106.5,3105.8,3.1]
[1633076319448,0.22491401,3106.1,3105.8,3.1]
[1633076319747,0.006,3106.7,3106.0,5.34955147]
[1633076319748,0.256,3106.6,3106.0,5.34955147]
[1633076319946,0.256,3106.6,3106.0,5.36383647]
[1633076320145,0.256,3106.6,3106.4,0.83354953]
[1633076320347,0.256,3106.6,3106.5,7.193]
[1633076320847,5.79105404,3106.3,3106.0,0.003]
[1633076321047,5.79105404,3106.3,3105.6,1.07928781]
[1633076321048,1.10907588,3105.8,3105.6,1.07928781]
[1633076321250,0.98151864,3105.7,3105.6,1.07928781]
[1633076321449,5.38151864,3105.7,3105.6,1.07928781]
[1633076322049,6.67551864,3105.7,3105.6,1.07928781]
[1633076322446,6.86851864,3105.7,3105.6,1.07928781]
[1633076322848,12.03978829,3105.7,3105.6,1.07928781]
[1633076323246,16.04459107,3105.7,3105.6,1.07928781]
[1633076323446,16.04459107,3105.7,3105.6,8.781e-05]
[1633076323846,17.04459107,3105.7,3105.6,8.781e-05]
[1633076325048,21.87850664,3105.7,3105.6,8.781e-05]
[1633076325248,21.88271764,3105.7,3105.6,8.781e-05]
[1633076325446,6.45,3105.6,3104.8,0.001791]
[1633076325655,0.193,3105.5,3104.8,0.001791]
[1633076325846,0.193,3105.5,3104.4,0.004791]
[1633076325847,1.20811772,3104.6,3104.4,0.004791]
[1633076326046,4.833,3105.4,3104.4,1.76976828]
[1633076326047,0.193,3104.5,3104.4,1.76976828]
[1633076326251,0.193,3104.7,3104.4,4.07021906]
[1633076326447,0.193,3104.7,3104.6,3.358905]
[1633076326649,0.193,3104.7,3104.6,5.65864857]
[1633076326848,0.41214326,3104.7,3104.6,5.66043957]
[1633076327047,0.41214326,3104.7,3104.6,2.31043957]
[1633076327448,0.41214326,3104.7,3104.6,0.010696]
[1633076328248,0.41214326,3104.7,3104.6,0.001791]
[1633076328249,0.193,3104.7,3104.6,0.001791]
[1633076328654,0.193,3104.7,3104.4,0.004791]
[1633076328655,1.487,3104.7,3104.4,0.004791]
[1633076328849,3.22260852,3104.6,3104.4,0.004791]
[1633076329152,1.0,3105.5,3104.4,0.004791]
[1633076329153,4.25060324,3106.3,3106.2,4.19511988]
[1633076329349,0.006,3107.2,3106.2,4.19511988]
[1633076329350,2.8731251,3107.3,3106.8,6.85]
[1633076329552,0.25,3107.3,3107.2,0.02597165]
[1633076329749,0.006,3107.6,3107.2,0.02597165]
[1633076329750,0.006,3107.6,3107.2,1.03597165]
[1633076329950,0.006,3107.6,3107.5,0.010558]
[1633076329951,2.736,3107.6,3107.5,0.010558]
[1633076330148,0.256,3107.6,3107.5,0.203558]
[1633076330348,0.256,3107.6,3107.5,1.213558]
[1633076330549,0.256,3107.6,3107.5,0.203558]
[1633076330747,0.256,3107.6,3107.5,1.213558]
[1633076332148,0.256,3107.6,3107.5,0.203558]
[1633076332350,0.47403403,3107.6,3107.5,1.203]
[1633076332751,0.47403403,3107.6,3107.5,1.23573627]
[1633076333151,0.006,3107.7,3107.5,1.23573627]
[1633076333349,0.006,3107.7,3107.5,4.45334837]
[1633076333549,0.006,3107.7,3107.6,0.64782849]
[1633076333749,0.006,3107.7,3107.6,1.09837951]
[1633076333948,0.006,3107.7,3107.6,0.45055102]
[1633076335550,0.00718965,3107.7,3107.6,0.45055102]
[1633076335749,8.40718965,3107.7,3107.6,0.45055102]
[1633076335949,8.40718965,3107.7,3106.9,0.58565827]
[1633076335950,6.7,3107.6,3107.0,3.2211438]
[1633076336151,6.7,3107.6,3107.0,0.003]
[1633076336152,3.22918808,3107.5,3107.0,0.003]
[1633076336350,6.7,3107.6,3107.0,0.003]
[1633076336551,6.7,3107.6,3106.5,3.22003319]
[1633076336552,8.15,3107.5,3106.5,3.22003319]
[1633076336750,0.72494642,3106.9,3106.5,0.003]
[1633076336954,1.96619741,3107.3,3106.5,0.003]
[1633076337154,3.17279137,3107.2,3106.4,3.22173]
[1633076337351,1.96619741,3107.3,3106.4,0.003]
[1633076337555,1.96619741,3107.3,3106.5,0.003]
[1633076337752,5.16039068,3107.3,3106.3,0.003]
[1633076337952,4.83055,3107.2,3106.3,0.003]
[1633076338251,4.83055,3107.2,3106.3,0.77123528]
[1633076338252,2.2493829,3106.8,3106.3,0.77123528]
[1633076338453,0.9553829,3106.8,3106.3,0.77123528]
[1633076338651,0.9553829,3106.8,3106.4,0.003]
[1633076338854,1.13412876,3106.7,3106.4,0.003]
[1633076339051,1.13412876,3106.7,3106.2,4.19511988]
[1633076339052,1.294,3106.6,3106.3,0.003]
[1633076339255,1.294,3106.6,3106.5,0.12850499]
[1633076339256,1.41809977,3106.6,3106.5,0.12850499]
[1633076339455,1.13412876,3106.7,3106.5,0.12850499]
[1633076339652,1.13412876,3106.7,3106.5,0.13150499]
[1633076340254,10.044,3106.6,3106.5,4.99e-06]
[1633076340453,8.699,3106.6,3106.5,4.99e-06]
[1633076340663,8.699,3106.6,3106.2,4.19511988]
[1633076340664,0.90077991,3105.5,3105.2,0.006]
[1633076340856,2.74811832,3105.4,3105.2,0.006]
[1633076341053,1.159129,3105.3,3105.2,0.006]
[1633076341253,2.06090837,3105.3,3104.8,0.007791]
[1633076341452,1.05677937,3105.3,3104.8,4.8317]
[1633076341655,1.05677937,3105.3,3104.7,3.2213549]
[1633076341853,1.05677937,3105.3,3104.9,0.007791]
[1633076342057,1.05677937,3105.3,3104.8,0.007791]
[1633076342756,1.294,3105.1,3104.8,0.007791]
[1633076342955,1.05677937,3105.3,3104.8,0.007791]
[1633076343356,1.52944321,3105.3,3104.8,0.007791]
[1633076343556,1.84483781,3105.3,3104.6,0.007791]
[1633076343756,1.294,3105.0,3104.6,0.007791]
[1633076343955,1.84483781,3105.3,3104.6,0.007791]
[1633076344155,1.0,3105.2,3104.6,0.75135571]
[1633076344356,0.155,3105.2,3104.6,0.007791]
[1633076344558,0.155,3105.2,3104.7,0.007791]
[1633076344756,0.155,3105.2,3104.7,0.06307844]
[1633076344958,0.9302633,3104.8,3104.7,0.06307844]
[1633076345157,0.155,3105.2,3104.7,0.05528744]
[1633076345356,0.85958829,3105.0,3104.7,0.06428744]
[1633076345758,0.85958829,3105.0,3104.8,0.009]
[1633076346357,0.85958829,3105.0,3104.8,0.00470319]
[1633076346961,1.294,3104.9,3104.8,0.00470319]
[1633076347161,0.85958829,3105.0,3104.8,0.00470319]
[1633076347360,1.04583192,3104.9,3104.8,0.00470319]
[1633076347963,2.33983192,3104.9,3104.8,0.00470319]
[1633076348163,2.49483192,3104.9,3104.8,0.00470319]
[1633076348362,3.49483192,3104.9,3104.8,0.00470319]
[1633076348960,3.81030258,3104.9,3104.8,0.00470319]
[1633076349360,3.81030258,3104.9,3104.6,0.00470319]
[1633076349561,1.0,3104.8,3104.6,0.00470319]
[1633076349765,0.155,3104.7,3104.6,0.00470319]
[1633076349961,0.155,3104.7,3104.5,1.48670349]
[1633076350962,0.95083192,3104.9,3104.5,1.48670349]
[1633076351162,0.155,3104.8,3104.5,1.48670349]
[1633076352162,1.294,3104.7,3104.5,1.48670349]
[1633076352367,0.003,3106.0,3105.5,11.23919068]
[1633076352565,0.003,3106.0,3105.9,0.03808258]
[1633076352966,0.003,3106.0,3105.5,2.48919068]
[1633076353366,1.294,3105.8,3105.5,2.48919068]
[1633076353567,0.003,3106.0,3105.5,2.48919068]
[1633076354366,1.294,3105.8,3105.5,2.48919068]
[1633076354569,0.76766954,3105.7,3105.5,2.48919068]
[1633076355168,0.88690324,3105.6,3105.5,2.48489387]
[1633076355369,0.79633371,3105.4,3104.9,0.003]
[1633076355568,0.79633371,3105.4,3104.8,0.003]
[1633076355569,5.78447749,3105.4,3104.8,0.003]
[1633076355770,0.004043,3104.9,3104.8,0.003]
[1633076355968,0.85742663,3104.9,3104.2,0.7561831]
[1633076356168,0.85742663,3104.9,3103.8,0.009]
[1633076356368,0.85742663,3104.9,3104.3,0.006]
[1633076356577,0.85742663,3104.9,3103.7,0.009]
[1633076356826,0.85742663,3104.9,3103.8,2.46254015]
[1633076357027,1.294,3104.4,3104.1,0.71473253]
[1633076357229,4.15321058,3104.9,3104.2,2.45840008]
[1633076357426,1.15660577,3104.8,3104.2,2.46440008]
[1633076357629,0.85742663,3104.9,3104.3,0.006]
[1633076357828,0.85338363,3104.9,3104.3,0.006]
[1633076358026,0.85338363,3104.9,3104.4,2.45300103]
[1633076358230,1.294,3104.7,3104.2,0.006]
[1633076358427,0.85338363,3104.9,3104.5,0.006]
[1633076358628,0.85338363,3104.9,3104.0,0.009]
[1633076358829,4.83401,3104.5,3104.1,2.45414624]
[1633076359028,4.83401,3104.5,3103.9,0.009]
[1633076359029,1.20663574,3104.4,3104.2,2.45447346]
[1633076359231,1.20663574,3104.4,3104.2,0.006]
[1633076359232,1.294,3104.3,3104.2,0.006]
[1633076359430,1.20663574,3104.4,3103.9,0.003]
[1633076359630,0.155,3105.0,3103.9,2.45612841]
[1633076359834,3.37771,3105.0,3103.9,2.45612841]
[1633076360033,3.37771,3105.0,3104.0,0.009]
[1633076360034,0.31569888,3104.3,3104.0,0.009]
[1633076360238,0.31569888,3104.3,3104.1,2.4536528]
[1633076360635,0.31569888,3104.3,3104.2,0.006]
[1633076361035,0.31569888,3104.3,3104.2,2.45810409]
[1633076361234,7.44516,3104.9,3104.3,0.05513131]
[1633076361434,6.44516,3104.9,3104.3,0.05513131]
[1633076361636,6.12775,3104.6,3104.4,0.006]
[1633076361837,1.097633,3104.5,3104.4,0.006]
[1633076362234,1.92007146,3104.5,3104.4,0.006]
[1633076362634,3.21407146,3104.5,3104.4,0.006]
[1633076363039,1.92007146,3104.5,3104.4,0.006]
[1633076365041,1.92007146,3104.5,3104.4,2.45965394]
[1633076365241,6.44516,3104.9,3104.4,0.006]
[1633076365443,0.31564182,3104.5,3104.4,0.006]
[1633076365641,0.31564182,3104.5,3104.4,2.5925434]
[1633076365840,0.31564182,3104.5,3104.4,2.4529434]
[1633076366242,0.31564182,3104.5,3104.4,0.1352]
[1633076366440,0.31564182,3104.5,3104.4,6.33670118]
[1633076366640,1.16574189,3104.7,3104.4,6.3372918]
[1633076366842,1.16574189,3104.7,3104.4,3.93957059]
[1633076367040,1.16574189,3104.7,3104.5,0.006]
[1633076367240,1.16574189,3104.7,3104.5,0.1332]
[1633076367441,1.16574189,3104.7,3104.5,0.12890319]
[1633076367645,1.16574189,3104.7,3104.6,0.00170319]
[1633076367842,0.003,3105.0,3104.6,0.00170319]
[1633076368242,2.48489387,3105.4,3105.3,9.75]
[1633076368443,9.387e-05,3105.4,3105.3,13.21362133]
[1633076368844,0.003,3106.5,3106.2,1.17182374]
[1633076369048,0.02552435,3107.4,3105.6,1.53867968]
[1633076369049,0.006,3107.7,3107.4,2.77717342]
[1633076369243,0.006,3107.7,3107.4,2.11219884]
[1633076369444,1.297,3107.5,3107.4,1.09825084]
[1633076369646,1.297,3107.5,3106.5,0.003]
[1633076369647,7.85191907,3106.8,3106.5,0.003]
[1633076369846,1.03387902,3106.6,3106.5,0.003]
[1633076370043,1.03387902,3106.6,3106.2,0.003]
[1633076370243,1.03387902,3106.6,3105.7,0.006]
[1633076370443,1.05875646,3106.6,3105.7,0.006]
[1633076370653,0.77544076,3106.0,3105.7,0.006]
[1633076371043,0.88173709,3105.9,3105.7,0.006]
[1633076371247,3.305086,3105.8,3105.7,0.006]
[1633076371444,4.305086,3105.8,3105.7,0.006]
[1633076371644,1.005086,3105.8,3105.6,0.006]
[1633076371846,1.0,3105.7,3105.6,0.006]
[1633076372045,1.88173709,3105.9,3105.6,0.006]
[1633076372246,1.88173709,3105.9,3105.7,0.05549681]
[1633076372646,1.88173709,3105.9,3105.8,0.006]
[1633076372845,0.88173709,3105.9,3105.8,0.006]
[1633076373044,1.88173709,3105.9,3105.8,0.006]
[1633076373253,0.88173709,3105.9,3105.8,0.006]
[1633076373448,2.17573709,3105.9,3105.8,0.006]
[1633076373845,3.17573709,3105.9,3105.8,0.006]
[1633076374249,1.88173709,3105.9,3105.8,0.006]
[1633076374450,2.17573709,3105.9,3105.8,0.006]
[1633076374849,4.838685,3105.9,3105.8,0.006]
[1633076376047,1.0,3105.9,3105.8,0.006]
[1633076376256,6.44218,3106.7,3105.8,0.006]
[1633076376257,7.85191907,3106.8,3106.6,2.82962172]
[1633076376450,0.003,3107.5,3106.8,13.53259412]
[1633076376653,0.003,3107.5,3107.4,8.79278865]
[1633076376850,0.003,3107.5,3107.3,1.01]
[1633076377048,0.003,3107.5,3106.9,0.155]
[1633076377049,0.90871842,3107.5,3106.9,0.155]
[1633076377252,0.94733334,3107.5,3106.9,1.165]
[1633076377448,0.94733334,3107.5,3106.9,0.155]
[1633076377649,0.94733334,3107.5,3107.0,0.05588789]
[1633076378452,0.91364801,3107.4,3107.0,0.05588789]
[1633076379048,2.40078111,3107.5,3107.2,1.294]
[1633076379049,0.003,3107.5,3107.2,1.294]
[1633076379255,0.003,3107.5,3107.0,1.07391789]
[1633076379449,0.003,3107.5,3107.0,0.06391789]
[1633076379849,0.003,3107.5,3107.0,1.06962108]
[1633076380049,0.003,3107.5,3107.3,0.94929208]
[1633076380250,0.003,3107.5,3107.0,0.05962108]
[1633076380652,0.003,3107.5,3107.0,0.05159108]
[1633076381857,0.003,3107.5,3106.8,14.77428708]
[1633076382051,0.31672604,3107.4,3106.8,9.94586708]
[1633076382262,0.31672604,3107.4,3106.9,0.79700253]
[1633076382453,0.31672604,3107.4,3106.8,10.95586708]
[1633076382661,0.31672604,3107.4,3107.1,1.294]
[1633076382852,0.31672604,3107.4,3106.8,17.39297708]
[1633076383252,0.003,3107.5,3106.8,16.43667763]
[1633076383452,0.003,3107.5,3106.8,9.99956763]
[1633076383755,0.003,3107.5,3107.0,0.84693099]
[1633076384351,1.04011884,3107.3,3107.0,0.84693099]
[1633076384555,0.003,3107.5,3107.0,0.84693099]
[1633076385152,0.003,3107.5,3106.8,9.99956763]
[1633076385751,0.87932069,3107.4,3106.8,9.99956763]
[1633076385952,0.003,3107.5,3106.8,9.99956763]
[1633076386159,0.91568912,3107.2,3106.8,9.99956763]
[1633076387154,0.96431892,3107.1,3106.8,9.99956763]
[1633076387556,0.31685896,3107.0,3106.8,9.94586708]
[1633076388755,0.96431892,3107.1,3106.8,9.99952869]
[1633076389559,0.96431892,3107.1,3106.8,9.99523188]
[1633076391759,0.78639081,3107.3,3106.8,9.99523188]
[1633076391958,0.003,3107.5,3106.8,9.99523188]
[1633076392759,0.90173362,3107.2,3106.8,9.99523188]
[1633076392961,0.003,3107.5,3107.0,1.294]